bitfinex/quotes_ETHUSD_20250523
["timestamp","ask_amount","ask_price","bid_price","bid_amount"]
[1748001080494,0.00322,2586.5,2586.2,3.86652785]
[1748001080495,0.00322,2586.5,2585.4,0.32288334]
[1748001080843,0.00322,2586.5,2585.5,0.03866983]
[1748001081043,0.00322,2586.5,2585.2,1.5439]
[1748001081044,0.55,2586.1,2585.2,1.5439]
[1748001081273,0.55,2586.4,2584.5,1.5439]
[1748001081457,0.55,2586.4,2584.6,0.03867754]
[1748001081458,3.86652747,2586.3,2584.6,0.03867754]
[1748001081661,0.55,2586.2,2584.5,1.5439]
[1748001081987,3.86746298,2585.7,2584.5,5.41307936]
[1748001082218,3.86702217,2586.0,2584.6,0.03867455]
[1748001082430,0.55,2586.0,2584.6,3.86898003]
[1748001082583,0.55,2585.2,2583.9,1.6626]
[1748001082783,3.86870838,2584.9,2583.9,1.6626]
[1748001083029,3.86878615,2584.8,2584.0,3.86996904]
[1748001083393,3.86757425,2585.6,2584.1,0.03868691]
[1748001083551,0.55,2585.2,2583.9,1.6626]
[1748001083846,1.5842,2585.5,2581.9,14.5]
[1748001083998,1.5842,2585.1,2581.8,3.87326671]
[1748001084205,0.55,2585.0,2581.9,0.58340359]
[1748001084500,3.87041839,2583.7,2581.7,1.5737]
[1748001084701,3.87326671,2581.8,2581.7,1.5737]
[1748001085002,3.87386689,2581.4,2581.1,1.5987]
[1748001085212,1.6139,2582.3,2580.5,1.5946]
[1748001085411,3.87221684,2582.5,2580.5,1.5946]
[1748001085634,1.6139,2583.1,2580.5,1.5946]
[1748001085803,16.677,2583.2,2580.0,8.34979235]
[1748001085804,3.8736893,2581.6,2580.0,8.34979235]
[1748001086137,3.87510396,2580.6,2580.0,8.34979235]
[1748001086336,3.87332381,2581.8,2580.0,8.34979235]
[1748001086541,0.55,2582.2,2580.1,0.03873906]
[1748001086714,1.5004,2582.3,2580.1,0.03873823]
[1748001086914,8.74588447,2583.1,2580.0,8.34979235]
[1748001087164,3.87354337,2581.7,2580.0,8.34979235]
[1748001087340,0.55,2582.4,2580.0,8.34979235]
[1748001087642,3.8713174,2583.1,2580.3,3.87541216]
[1748001087813,3.87251674,2582.3,2580.0,8.34979235]
[1748001087999,0.55,2581.4,2580.0,8.34979235]
[1748001088200,4.42581876,2580.1,2580.0,8.34979235]
[1748001088434,4.42581876,2580.1,2578.3,0.024]
[1748001088435,3.87837418,2578.4,2578.3,0.024]
[1748001088631,3.87897595,2578.0,2577.9,3.92497406]
[1748001088809,3.87912642,2577.9,2577.8,23.66480753]
[1748001089019,15.46812642,2577.9,2577.8,23.66480753]
[1748001089219,15.46812642,2577.9,2576.0,0.005]
[1748001089220,8.7460337,2577.8,2576.0,0.005]
[1748001089447,3.88228899,2575.8,2575.7,3.50918566]
[1748001090151,0.55,2576.6,2575.7,3.50918566]
[1748001090311,3.88047627,2577.1,2575.7,3.50918566]
[1748001090648,3.88204368,2576.0,2575.7,3.50918566]
[1748001090962,4.07,2577.3,2575.8,0.88145849]
[1748001091166,3.88424936,2574.5,2573.6,4.42609504]
[1748001091340,3.88545673,2573.7,2573.6,4.42609504]
[1748001091538,15.48645673,2573.7,2573.6,4.42609504]
[1748001091859,0.34655938,2573.7,2573.6,4.42609504]
[1748001092175,11.601,2574.5,2572.4,20.87440684]
[1748001092467,4.43726919,2572.5,2572.4,20.87440684]
[1748001092654,3.74394587,2572.5,2572.4,20.32440684]
[1748001092857,3.88390863,2574.8,2572.4,22.41184752]
[1748001093046,0.31485844,2574.7,2572.1,0.2]
[1748001093239,0.92972638,2574.7,2572.1,0.2]
[1748001093467,0.31485844,2574.7,2572.2,16.677]
[1748001093766,0.02092999,2575.8,2572.1,0.2]
[1748001093935,8.31485844,2575.7,2572.1,0.2]
[1748001094125,0.1,2575.1,2572.1,0.2]
[1748001094324,0.31485844,2575.0,2572.1,0.2]
[1748001094528,3.88670329,2572.9,2572.1,0.2]
[1748001094831,11.616,2575.8,2572.1,0.2]
[1748001095030,3.88772257,2572.2,2572.1,0.2]
[1748001095226,4.66524875,2572.2,2572.1,0.2]
[1748001095551,11.616,2574.8,2572.1,0.2]
[1748001095758,11.616,2574.8,2572.1,0.19848252]
[1748001095759,3.55969726,2572.2,2572.1,0.19848252]
[1748001095932,3.88847843,2571.7,2571.6,8.11104184]
[1748001097165,3.76354639,2571.7,2571.6,8.11104184]
[1748001097568,3.71503122,2571.7,2571.6,8.11104184]
[1748001097770,0.20284171,2573.1,2571.6,9.37127206]
[1748001097971,3.88590969,2573.4,2571.6,8.11104184]
[1748001098156,3.88417426,2574.6,2571.7,22.5]
[1748001098359,0.20278106,2574.7,2571.7,14.5]
[1748001098566,3.88847843,2571.7,2571.6,8.11104184]
[1748001099137,3.88847843,2571.7,2571.6,7.88274544]
[1748001099437,3.69239208,2571.7,2571.6,7.88274544]
[1748001099753,3.88847843,2571.7,2571.6,7.88274544]
[1748001100153,3.88847843,2571.7,2571.6,7.5492711]
[1748001100358,3.88847843,2571.7,2569.6,25.83681747]
[1748001100359,3.89150484,2569.7,2569.6,25.83681747]
[1748001100679,10.11212165,2569.0,2568.9,9.1796875]
[1748001100979,11.89347453,2568.4,2568.3,5.48717151]
[1748001101180,11.89347453,2568.4,2568.3,1.819781]
[1748001101384,11.89347453,2568.4,2565.8,0.005]
[1748001101385,3.89529448,2567.2,2565.8,0.005]
[1748001101879,3.78044721,2567.2,2565.8,0.005]
[1748001102455,3.80676126,2567.2,2566.5,16.773]
[1748001102653,3.89511748,2567.4,2566.5,16.773]
[1748001102853,3.89529448,2567.2,2566.5,16.773]
[1748001103195,3.8968124,2566.2,2566.1,10.0]
[1748001103342,3.89663533,2566.4,2566.1,10.0]
[1748001103540,3.89462903,2567.7,2566.1,10.0]
[1748001103782,3.8968124,2566.2,2566.1,10.0]
[1748001104383,3.89558989,2567.1,2566.1,10.0]
[1748001104384,3.89483933,2567.5,2566.1,11.0]
[1748001104539,3.89393092,2568.1,2566.1,10.0]
[1748001104741,3.89483933,2567.5,2566.1,10.0]
[1748001105110,3.89969972,2564.3,2564.2,26.47210744]
[1748001105241,3.90091671,2563.5,2560.6,10.5]
[1748001105443,11.757,2563.8,2560.6,10.5]
[1748001105670,3.90381011,2561.6,2560.6,10.5]
[1748001105961,0.00322,2561.6,2560.6,10.5]
[1748001106156,3.90518217,2560.7,2560.6,10.19854174]
[1748001106356,3.90518217,2560.7,2560.6,7.77191323]
[1748001106671,3.41703439,2560.7,2560.6,7.77191323]
[1748001106870,3.90518217,2560.7,2560.6,7.77191323]
[1748001107101,3.72285011,2560.7,2560.6,7.77191323]
[1748001107400,3.90200188,2562.8,2560.6,7.77191323]
[1748001107601,3.90122108,2563.3,2560.7,1.0984168]
[1748001107815,3.90038892,2563.9,2560.7,0.52319973]
[1748001108020,0.02092999,2564.0,2560.7,8.52319973]
[1748001108297,6.2655754,2563.7,2560.6,7.77191323]
[1748001108479,3.90468769,2561.1,2560.6,8.54910455]
[1748001108660,3.90518217,2560.7,2560.6,7.77191323]
[1748001108864,3.9001894,2564.0,2560.7,1.6328]
[1748001109104,3.90122108,2563.3,2560.9,8.0]
[1748001109408,3.90359371,2561.8,2560.8,16.807]
[1748001109616,3.90122108,2563.3,2560.9,8.0]
[1748001109904,0.31485844,2563.2,2560.7,1.5041]
[1748001110118,3.89935712,2564.6,2562.0,8.0]
[1748001110264,0.02092999,2565.1,2562.6,0.1]
[1748001110459,0.02092999,2566.5,2562.7,17.31519973]
[1748001110730,0.02092999,2566.5,2563.6,3.90073648]
[1748001110731,0.02092999,2565.1,2563.6,3.90073648]
[1748001111018,0.33578843,2566.5,2562.8,9.73151997]
[1748001111302,1.6027,2565.1,2562.7,16.817]
[1748001111660,3.9019822,2562.8,2562.7,16.817]
[1748001111861,3.90075506,2563.7,2562.7,16.817]
[1748001111862,0.51382081,2566.1,2562.7,16.817]
[1748001112155,0.31485844,2565.0,2562.7,16.817]
[1748001112361,0.31485844,2565.0,2560.5,6.54]
[1748001112362,3.89878747,2564.9,2561.7,16.817]
[1748001112563,0.82867925,2565.0,2560.6,11.67712024]
[1748001112564,8.0,2564.7,2561.8,16.817]
[1748001112809,0.31485844,2564.6,2561.9,16.817]
[1748001113118,1.6027,2565.1,2562.1,1.6491]
[1748001113255,0.47757081,2565.7,2562.6,1.6129]
[1748001113256,0.31485844,2565.0,2562.6,1.6129]
[1748001113473,0.31485844,2565.0,2562.7,16.825]
[1748001113673,0.31485844,2565.0,2562.8,9.84379]
[1748001113920,0.31485844,2565.0,2562.7,16.825]
[1748001114095,3.90182995,2562.9,2562.8,1.6188]
[1748001114298,3.90194009,2562.9,2561.8,1.6188]
[1748001114641,1.5465,2563.4,2560.7,1.6546]
[1748001114914,1.5465,2563.4,2560.8,3.90502967]
[1748001115230,0.19550829,2565.4,2561.5,1.6546]
[1748001115434,0.02092999,2566.2,2563.3,3.90117574]
[1748001115581,3.89620509,2566.6,2563.8,1.6546]
[1748001115781,0.29700523,2566.5,2563.9,16.825]
[1748001115982,0.02092999,2566.7,2563.9,16.825]
[1748001115983,0.02092999,2566.7,2564.2,1.5011]
[1748001116215,0.02092999,2566.7,2564.2,0.8944225]
[1748001116216,0.1,2566.1,2564.2,0.8944225]
[1748001116523,1.5601,2565.2,2562.9,1.5011]
[1748001116819,3.89848348,2565.1,2563.0,0.32570527]
[1748001117118,3.89959935,2564.4,2563.0,0.32570527]
[1748001117326,1.5601,2566.3,2563.0,0.32570527]
[1748001117621,1.5601,2566.3,2564.1,1.5442]
[1748001117831,5.4567879,2566.3,2564.3,8.0]
[1748001118128,1.633,2569.4,2566.0,1.5442]
[1748001118279,0.20273925,2569.1,2567.3,1.5038]
[1748001118479,4.09520493,2569.1,2567.4,16.823]
[1748001118717,3.89483933,2567.5,2567.4,16.823]
[1748001119022,3.89317137,2568.6,2566.5,1.5038]
[1748001119227,3.8947422,2567.6,2564.6,1.5107]
[1748001119522,2.316,2568.0,2564.6,1.83620206]
[1748001119744,1.6076,2568.1,2565.7,8.0]
[1748001119944,0.19556555,2569.0,2565.8,17.14334983]
[1748001120097,3.89468764,2567.6,2567.5,1.5556]
[1748001120303,0.19537104,2569.4,2566.8,1.5456]
[1748001120503,0.19537104,2569.4,2566.9,0.32521041]
[1748001120504,3.89559797,2567.0,2566.9,0.32521041]
[1748001120680,3.89696426,2566.1,2566.0,1.5456]
[1748001121043,3.89540368,2567.2,2566.4,16.818]
[1748001121240,1.6089,2569.3,2566.4,16.818]
[1748001121241,0.55,2568.3,2566.5,0.22352916]
[1748001121566,1.6089,2569.3,2566.0,1.5456]
[1748001121567,6.24735506,2568.6,2566.0,1.5456]
[1748001121717,3.8961106,2566.7,2566.0,1.5456]
[1748001121899,0.62473551,2568.5,2566.0,1.5456]
[1748001122094,0.62473551,2568.5,2564.9,3.60767615]
[1748001122095,3.89833151,2565.2,2564.9,3.60767615]
[1748001122301,8.0,2566.9,2564.4,1.6592]
[1748001122545,3.89939559,2564.5,2564.4,1.6592]
[1748001122743,0.51568116,2568.0,2565.0,3.89856112]
[1748001123063,0.55,2567.1,2565.1,0.38985611]
[1748001123199,0.55,2565.5,2565.1,14.5]
[1748001123401,3.8938921,2568.2,2565.2,1.5966]
[1748001123661,0.19537104,2569.4,2566.5,1.6099]
[1748001123662,3.89392936,2568.1,2566.5,1.6099]
[1748001123810,3.89347453,2568.4,2566.5,1.6099]
[1748001124131,3.89211069,2569.3,2566.7,8.0]
[1748001124305,3.89095807,2570.1,2568.2,8.0]
[1748001124663,6.24735506,2570.5,2568.1,1.6099]
[1748001124800,3.89377774,2568.2,2568.1,1.6099]
[1748001125000,1.5774,2571.0,2568.1,1.6099]
[1748001125252,3.89125366,2569.9,2568.1,1.6099]
[1748001125413,3.8926247,2569.0,2568.2,16.812]
[1748001125621,0.38912537,2569.9,2568.1,1.6099]
[1748001125948,3.89119588,2570.0,2568.2,3.89377774]
[1748001126102,3.89049999,2570.4,2569.7,3.89139222]
[1748001126445,0.20271059,2571.4,2569.8,18.384]
[1748001126645,3.88908334,2571.3,2569.8,18.384]
[1748001126847,0.56355546,2572.0,2569.9,14.5]
[1748001127047,0.56355546,2572.0,2570.1,8.0]
[1748001127198,3.88854875,2571.7,2570.0,1.6654]
[1748001127398,3.88621172,2573.2,2570.0,1.6654]
[1748001127603,1.56722073,2574.2,2570.0,1.6654]
[1748001127842,16.812,2573.5,2570.0,1.6654]
[1748001128114,0.40026673,2574.2,2570.0,1.6654]
[1748001128115,0.20241087,2573.2,2570.0,1.6654]
[1748001128316,3.88825446,2571.9,2570.1,14.5]
[1748001128535,6.2142594,2573.3,2570.2,1.5762]
[1748001128715,0.20235524,2573.4,2570.2,1.5762]
[1748001128914,1.5772,2573.6,2570.2,1.5762]
[1748001129131,3.89059805,2570.3,2568.6,1.5084]
[1748001129312,0.38905981,2570.3,2568.6,1.5084]
[1748001129526,3.89301981,2568.7,2568.6,1.5084]
[1748001129729,3.89395135,2568.1,2567.1,3.89531173]
[1748001129944,3.89248519,2569.1,2567.0,3.89559797]
[1748001130241,1.6329,2571.0,2568.4,1.5599]
[1748001130427,0.55,2569.5,2568.5,16.804]
[1748001130630,1.6329,2571.0,2568.5,16.804]
[1748001130631,3.89165628,2569.6,2568.5,16.804]
[1748001130833,8.0,2569.9,2568.5,16.804]
[1748001131145,3.89356206,2568.4,2567.7,1.6563]
[1748001131353,1.6329,2571.0,2567.7,1.6563]
[1748001131557,3.89197166,2569.4,2568.5,3.89320712]
[1748001131716,3.89197166,2569.4,2567.8,14.5]
[1748001131717,1.6329,2571.0,2568.6,1.6563]
[1748001131899,3.89285271,2568.9,2567.2,1.5671]
[1748001132104,3.89529448,2567.2,2567.1,2.78911844]
[1748001132310,7.44560207,2569.4,2566.2,1.5671]
[1748001132506,8.0,2568.9,2566.2,1.5671]
[1748001132714,3.89649834,2566.5,2566.2,1.5671]
[1748001132948,3.89362613,2568.3,2566.2,1.5671]
[1748001133252,3.89453684,2567.7,2566.3,16.802]
[1748001133565,2.46424789,2570.2,2567.4,1.92970629]
[1748001133762,3.89089918,2570.1,2567.5,18.4329]
[1748001133910,1.94856673,2570.2,2567.9,1.5704]
[1748001133911,3.89120199,2569.9,2567.9,1.5704]
[1748001134111,0.40026673,2570.2,2567.9,1.5704]
[1748001134351,0.99,2570.0,2567.9,1.5704]
[1748001134878,8.0,2567.4,2564.6,0.005]
[1748001135154,8.0,2564.3,2563.2,0.02092999]
[1748001135356,1.6199,2564.2,2561.8,1.6497]
[1748001135542,1.6199,2564.2,2561.8,16.1497]
[1748001135543,0.55,2564.1,2561.8,16.1497]
[1748001135746,0.55,2563.9,2560.6,7.77191323]
[1748001135925,3.90518217,2560.7,2560.6,7.77191323]
[1748001136560,11.90518217,2560.7,2560.6,7.77191323]
[1748001136905,11.90518217,2560.7,2560.6,3.14065045]
[1748001137110,3.90838739,2558.6,2556.5,1.52950596]
[1748001137335,3.90838739,2558.6,2556.5,0.269111]
[1748001137535,3.91144488,2556.6,2556.5,0.269111]
[1748001137719,3.91144488,2556.6,2554.3,0.005]
[1748001137720,8.0,2555.2,2554.3,0.005]
[1748001138048,3.91343482,2555.3,2554.3,0.41728728]
[1748001138251,3.22793482,2555.3,2554.3,0.005]
[1748001138453,3.91343482,2555.3,2554.9,1.5888]
[1748001138647,3.91333797,2555.4,2554.3,0.005]
[1748001138837,3.91353733,2555.3,2554.3,0.005]
[1748001139354,8.0,2555.2,2554.3,0.005]
[1748001139516,3.91353733,2555.3,2554.3,0.005]
[1748001139845,3.90941678,2558.0,2554.4,5.42685583]
[1748001140162,3.9135755,2555.3,2554.4,18.3311]
[1748001140315,3.9135755,2555.3,2554.3,0.005]
[1748001140316,8.0,2555.2,2554.3,0.005]
[1748001140514,3.9135755,2555.3,2554.3,0.005]
[1748001140741,3.9135755,2555.3,2555.1,8.3875]
[1748001140742,8.0,2555.2,2555.1,8.3875]
[1748001140950,3.9135755,2555.3,2555.1,8.3875]
[1748001141249,3.91588675,2553.7,2553.6,0.005]
[1748001141750,11.91588675,2553.7,2553.6,0.005]
[1748001141922,3.19487711,2553.4,2553.3,25.87876604]
[1748001142126,3.91611129,2553.6,2553.3,25.67521019]
[1748001142322,3.91395804,2555.0,2553.3,42.51721019]
[1748001142323,3.91542678,2554.0,2553.3,42.51721019]
[1748001142548,3.91634683,2553.4,2553.3,42.51721019]
[1748001142771,1.99553263,2556.6,2553.3,42.51721019]
[1748001142772,1.173971,2556.7,2553.4,8.0]
[1748001142936,6.3025716,2556.4,2553.4,8.0]
[1748001143133,1.173971,2556.7,2553.3,42.51721019]
[1748001143348,3.91634683,2553.4,2553.3,25.67521019]
[1748001143556,11.91634683,2553.4,2553.3,25.55058311]
[1748001143753,3.91634683,2553.4,2553.3,25.55058311]
[1748001144127,3.78862488,2553.4,2553.3,25.55058311]
[1748001144637,3.75255841,2553.4,2553.3,25.55058311]
[1748001144947,3.91267656,2555.8,2553.3,25.55058311]
[1748001145259,3.91221,2556.1,2553.3,25.55058311]
[1748001145454,3.91190392,2556.3,2553.5,1.607]
[1748001145769,0.22454264,2559.1,2555.8,9.607]
[1748001145950,1.174778,2557.5,2556.0,8.0]
[1748001146154,6.30546283,2558.8,2554.3,1.6628]
[1748001146467,1.174582,2557.8,2554.3,1.6628]
[1748001146638,6.30546283,2556.0,2554.3,1.6628]
[1748001146838,11.711,2555.9,2553.4,1.5436]
[1748001147042,0.49891747,2555.9,2553.3,25.55058311]
[1748001147256,3.91634683,2553.4,2553.3,25.55058311]
[1748001147481,3.91488677,2554.4,2553.3,25.55058311]
[1748001147688,0.02092999,2556.7,2553.3,25.55058311]
[1748001147963,0.02092999,2556.7,2553.4,5.50540863]
[1748001148296,6.30546283,2557.1,2553.3,25.55058311]
[1748001148495,3.91634683,2553.4,2553.3,25.55058311]
[1748001148790,3.91388535,2555.1,2553.4,1.5178]
[1748001149096,0.02092999,2556.7,2553.6,1.597]
[1748001149247,1.174163,2557.8,2553.6,1.597]
[1748001149248,0.35978894,2557.7,2553.6,1.597]
[1748001149449,0.35978894,2557.7,2553.7,16.3461]
[1748001149794,1.175095,2557.7,2553.9,8.0]
[1748001149951,6.30546283,2559.5,2555.3,1.6384]
[1748001150145,6.30546283,2559.4,2555.5,8.0]
[1748001150387,1.174373,2558.3,2555.9,14.5]
[1748001150549,6.30546283,2559.0,2555.9,1.45]
[1748001150749,6.30546283,2558.7,2555.3,1.6384]
[1748001150955,3.90823465,2558.7,2555.3,1.6384]
[1748001151263,6.30546283,2558.9,2555.3,1.6384]
[1748001151462,6.30546283,2558.0,2555.3,1.6384]
[1748001151720,3.91328167,2555.4,2555.3,1.6384]
[1748001152159,1.6438,2556.3,2552.9,16.876]
[1748001152359,11.91634683,2553.4,2552.9,16.876]
[1748001152558,3.91616672,2553.6,2553.3,27.05668311]
[1748001152801,3.91634683,2553.4,2553.3,27.05668311]
[1748001153099,3.91634683,2553.4,2553.3,18.77816675]
[1748001153892,3.9155878,2553.9,2553.3,18.77816675]
[1748001153893,1.5044,2555.1,2553.3,18.77816675]
[1748001154104,11.721,2556.4,2553.4,16.879]
[1748001154105,3.91346705,2555.3,2553.4,16.879]
[1748001154317,3.91351071,2555.3,2553.4,16.879]
[1748001154455,1.5517,2557.8,2553.6,1.5076]
[1748001154653,3.91043307,2557.3,2554.4,0.1]
[1748001154963,1.5517,2558.5,2555.7,1.5076]
[1748001155168,1.5517,2559.3,2556.0,8.0]
[1748001155367,1.90175614,2560.0,2556.0,2.35465631]
[1748001155688,3.91143801,2556.7,2556.1,16.882]
[1748001155888,17.99745355,2559.5,2556.2,1.5173]
[1748001156111,0.47217424,2560.5,2556.3,0.03910866]
[1748001156393,3.90823462,2558.8,2558.1,1.6636]
[1748001156552,3.90666827,2559.8,2558.2,16.882]
[1748001156891,3.92407787,2562.1,2558.4,1.5977]
[1748001157196,0.20346539,2561.4,2558.8,1.5977]
[1748001157401,0.20346539,2561.4,2560.0,1.5977]
[1748001157625,5.48261318,2563.4,2560.1,3.90609741]
[1748001157626,3.90137328,2563.2,2560.1,3.90609741]
[1748001157833,3.90426736,2561.3,2560.1,16.882]
[1748001158111,3.90609741,2560.1,2560.0,1.5977]
[1748001158273,3.90536623,2560.6,2560.0,1.5977]
[1748001158473,0.20333541,2561.4,2560.0,1.5977]
[1748001158791,3.90609741,2560.1,2560.0,1.5977]
[1748001159121,0.20333541,2561.4,2560.0,1.5977]
[1748001159122,3.90526853,2560.7,2560.0,1.5977]
[1748001159274,0.20333541,2561.4,2560.0,1.5977]
[1748001159476,3.90520174,2560.7,2560.0,1.5977]
[1748001159705,3.90609741,2560.1,2560.0,1.5977]
[1748001159915,3.90444864,2561.2,2560.0,22.37494855]
[1748001160072,3.9055393,2560.5,2560.0,18.4687]
[1748001160271,3.90292786,2562.2,2560.0,18.4687]
[1748001160624,3.90122108,2563.3,2560.2,0.1]
[1748001160773,3.90305233,2562.1,2560.7,18.40516177]
[1748001160971,3.90220592,2562.7,2560.8,1.66734536]
[1748001161169,16.971,2565.5,2560.8,1.66734536]
[1748001161170,3.89939559,2564.5,2561.4,1.6283]
[1748001161373,0.20324138,2564.6,2561.5,16.871]
[1748001161581,3.90303981,2562.2,2561.6,14.53903073]
[1748001161819,6.2583006,2565.3,2561.4,1.6283]
[1748001161990,1.7575,2564.0,2559.5,1.6283]
[1748001162196,6.2583006,2563.6,2559.5,1.6283]
[1748001162418,8.0,2563.3,2559.5,1.6283]
[1748001162621,1.6575,2564.0,2560.3,1.6283]
[1748001162920,8.0,2563.8,2560.4,31.365]
[1748001163085,8.0,2563.8,2560.5,3.29933]
[1748001163086,3.90503045,2560.8,2560.5,3.29933]
[1748001163286,9.99124892,2563.8,2560.4,16.865]
[1748001163475,11.90443663,2561.2,2560.3,1.6283]
[1748001163675,3.90563974,2560.4,2560.3,1.6283]
[1748001163877,5.54490136,2562.5,2559.5,14.5]
[1748001164076,3.90374904,2561.7,2559.5,14.5]
[1748001164318,1.6424,2564.2,2560.4,3.90563974]
[1748001164625,1.6424,2564.2,2560.5,0.03902779]
[1748001164781,1.6424,2564.2,2560.5,0.57715455]
[1748001164975,6.26520813,2563.1,2559.6,3.1465]
[1748001165278,1.6345,2564.4,2559.7,18.40664529]
[1748001165508,8.0,2563.8,2559.7,14.5]
[1748001165707,11.90644941,2559.9,2559.8,0.03903108]
[1748001165915,3.90420182,2561.4,2557.8,16.862]
[1748001165916,3.90670781,2559.7,2557.9,3.90933022]
[1748001166118,3.90566511,2560.4,2557.8,31.362]
[1748001166119,3.90571982,2560.4,2557.8,31.362]
[1748001166319,3.9019822,2562.8,2558.5,0.1]
[1748001166479,1.6619,2562.9,2558.6,0.61621205]
[1748001166680,3.90487719,2560.9,2558.6,0.0390575]
[1748001167006,16.862,2560.9,2556.8,14.5]
[1748001167180,0.55,2561.0,2556.5,20.77356969]
[1748001167383,3.90699262,2559.6,2558.6,3.90838631]
[1748001167716,6.27757777,2562.0,2558.0,3.90928928]
[1748001167717,1.6469,2562.9,2558.7,17.43715455]
[1748001167900,0.02092999,2562.9,2558.8,8.0]
[1748001168103,3.90401452,2561.5,2559.5,8.0]
[1748001168304,3.90475012,2561.0,2559.6,0.03903541]
[1748001168509,1.6469,2563.6,2559.0,3.90767283]
[1748001168677,1.6469,2563.6,2559.7,14.5]
[1748001168876,3.90091671,2563.5,2559.6,0.57715455]
[1748001169123,3.90747108,2559.2,2558.3,3.9088213]
[1748001169283,1.5415,2561.4,2557.6,16.86]
[1748001169480,8.03903745,2561.3,2557.6,16.86]
[1748001169679,1.6223,2562.2,2557.7,1.686]
[1748001169915,0.03903745,2562.1,2557.9,3.90936535]
[1748001170108,1.6223,2563.3,2558.2,0.1]
[1748001170307,0.03903745,2563.2,2559.0,8.0]
[1748001170495,0.31485844,2563.3,2560.2,8.0]
[1748001170694,0.31485844,2563.3,2559.2,8.0]
[1748001170695,0.31485844,2563.3,2560.3,25.90098956]
[1748001171012,3.9028514,2562.3,2560.9,18.40481898]
[1748001171197,0.35389589,2563.3,2560.9,14.5]
[1748001171528,0.31485844,2563.3,2560.4,16.86]
[1748001171710,3.90365015,2561.8,2560.9,3.90474257]
[1748001171913,0.03903745,2562.9,2560.3,1.49316546]
[1748001172085,8.0,2562.0,2560.3,16.86]
[1748001172290,1.5834,2563.9,2560.3,16.86]
[1748001172489,3.89939559,2564.5,2560.3,16.86]
[1748001172732,1.5834,2564.7,2560.4,1.94923404]
[1748001172886,0.03903745,2564.6,2560.5,31.36]
[1748001173086,8.0,2564.6,2560.6,3.136]
[1748001173315,0.40026673,2565.2,2561.8,3.90337136]
[1748001173524,0.17358152,2565.1,2561.9,16.86]
[1748001173742,0.13454407,2565.0,2562.0,16.856]
[1748001174040,0.13454407,2565.0,2562.1,14.5]
[1748001174228,0.13454407,2565.0,2562.2,3.1356]
[1748001174427,0.13454407,2565.0,2562.3,0.03899778]
[1748001174736,3.90243232,2562.6,2562.2,3.1356]
[1748001174937,0.13454407,2565.0,2562.2,3.1356]
[1748001175341,0.13454407,2565.0,2562.3,14.5]
[1748001175527,2.38629266,2565.8,2562.4,1.76356]
[1748001175725,3.89819628,2565.3,2562.4,1.76356]
[1748001176042,2.38629266,2565.8,2562.9,1.98688675]
[1748001176243,2.38629266,2565.8,2563.1,14.5]
[1748001176244,3.89757181,2565.7,2563.1,14.5]
[1748001176444,2.38629266,2565.8,2563.1,16.49576829]
[1748001176629,2.38629266,2565.8,2563.3,8.0]
[1748001176816,3.89832243,2565.3,2563.5,3.90091671]
[1748001177016,2.38629266,2565.8,2563.4,16.849]
[1748001177216,2.38629266,2565.8,2563.7,8.0]
[1748001177432,3.89529448,2567.2,2563.7,3.90061239]
[1748001177748,0.40026673,2567.4,2563.8,1.89777669]
[1748001177945,3.89497719,2567.5,2563.9,8.61610935]
[1748001178247,1.5958,2569.0,2564.8,8.0]
[1748001178470,0.03903745,2569.0,2564.9,17.42615455]
[1748001178605,3.89311033,2568.7,2565.1,3.89848348]
[1748001178811,3.89332295,2568.5,2565.3,3.89817955]
[1748001179115,0.40026673,2569.2,2565.4,15.07456288]
[1748001179329,0.40026673,2569.2,2565.4,14.5]
[1748001179539,0.40026673,2569.2,2567.4,3.89487608]
[1748001179720,0.40026673,2569.2,2567.5,17.16213441]
[1748001179926,0.20271937,2569.3,2567.6,18.87833519]
[1748001180109,0.20271937,2569.3,2567.7,0.36402787]
[1748001180311,0.20271937,2569.3,2567.8,0.32509642]
[1748001180511,0.99,2570.0,2568.0,3.89408099]
[1748001180807,0.99,2570.0,2567.9,0.038918]
[1748001180808,0.20260087,2569.8,2568.1,0.36396641]
[1748001181048,3.89175864,2569.6,2568.9,3.84500089]
[1748001181253,6.91344867,2572.3,2569.0,0.70944466]
[1748001181459,3.88998428,2570.8,2569.1,17.16193192]
[1748001181629,0.43930418,2571.7,2569.2,0.32491927]
[1748001181831,3.88953714,2571.0,2569.2,0.32491927]
[1748001182155,3.89211069,2569.3,2569.2,0.32491927]
[1748001182359,3.89211069,2569.3,2567.6,1.71621344]
[1748001182360,8.0,2569.2,2567.6,1.71621344]
[1748001182524,1.6333,2570.9,2568.1,3.8938042]
[1748001182723,1.6333,2570.9,2567.7,14.5]
[1748001182724,0.03903745,2570.8,2567.7,14.5]
[1748001182934,1.6333,2570.9,2567.8,0.36400883]
[1748001183136,1.6333,2570.9,2567.9,0.03890608]
[1748001183351,6.89251868,2571.6,2567.9,0.32508376]
[1748001183663,1.5267,2571.7,2568.3,3.89349206]
[1748001183831,5.41528538,2571.7,2568.4,0.4282495]
[1748001184034,3.88999255,2570.7,2568.8,3.89272002]
[1748001184248,3.88894887,2571.4,2570.5,3.89028663]
[1748001184420,1.6486,2573.1,2570.6,20.71503296]
[1748001184628,3.88666485,2572.9,2571.2,3.88912926]
[1748001184821,3.88543514,2573.8,2571.3,0.42778794]
[1748001185027,0.31485844,2573.8,2571.3,0.03887501]
[1748001185260,3.88545673,2573.7,2571.3,0.03887501]
[1748001185422,3.88668143,2572.9,2571.3,0.03887501]
[1748001185627,3.88612621,2573.3,2571.3,0.03887501]
[1748001185919,3.88530577,2573.8,2571.4,0.0388573]
[1748001186123,1.65219613,2575.2,2571.8,14.5]
[1748001186323,0.31485844,2575.1,2571.9,16.85184118]
[1748001186562,0.31485844,2575.1,2571.9,16.813]
[1748001186727,6.96110795,2574.9,2571.9,16.813]
[1748001186920,3.88636275,2573.1,2571.9,16.813]
[1748001187225,3.88787372,2572.1,2572.0,1.6813]
[1748001187448,3.88666485,2572.9,2571.9,16.813]
[1748001187449,3.88802488,2572.0,2571.9,16.813]